Workbook

Sheet Program
D3: Program k výpočtu ekonomických ukazatelů

Sheet Rozvaha
C4: AKTIVA | D4: 2010 | E4: 2011 | F4: 2012 | G4: 2013 | H4: 2014 | I4: 2015
C5: Aktiva celkem (součet A až D) | D5: 1395 | E5: 432 | F5: 458 | G5: 795 | H5: 3561 | I5: 819
B6: A. | C6: Pohhledávky za upsaný základní kapitál
B7: B. | C7: Dlouhodobý majetek | D7: 91 | E7: 65 | H7: 169 | I7: 267
B8: B.I. | C8: Dlouhodobý nehmotný majetek | D8: 0 | E8: 11
B9: B.I.3. | C9: Software | D9: 21 | E9: 11
B10: B.II. | C10: Dlouhodobý hmotný majetek | D10: 70 | E10: 54 | H10: 169 | I10: 267
B11: B.II.2. | C11: Stavby | D11: 57 | E11: 54 | H11: 169
B12: B.II.3. | C12: Samostatně movité věci a soubory movitých věcí | D12: 13
B13: C. | C13: Oběžná aktiva | D13: 1234 | E13: 330 | F13: 413 | G13: 714 | H13: 2935 | I13: 521
B14: C.I. | C14: Zásoby | G14: 50 | H14: 1 | I14: 4
B15: C.I.5. | C15: Zboží | G15: 50 | H15: 1 | I15: 4
B16: C.II. | C16: Dlouhodobé pohledávky | E16: 150 | F16: 126 | G16: 211 | H16: 278 | I16: 152
B17: C.II.1. | C17: Pohledávky z obchodních vztahů | E17: 4 | F17: 4 | G17: 10 | H17: 28 | I17: 51
B18: C.II.5. | C18: Dlouhodobě poskytnuté zálohy | E18: 160 | F18: 122 | G18: 190 | H18: 248 | I18: 97
B19: C.II.6. | C19: Dohadné účty aktivní | G19: 5
B20: C.II.7. | C20: Jiné pohledávky | G20: 6 | H20: 2 | I20: 4
B21: C.III. | C21: Krátkodobé pohledávky | D21: 682 | E21: 114 | F21: 241 | G21: 341 | H21: 309 | I21: 254
B22: C.III.1. | C22: Pohledávky z obchodních vztahů | D22: 433 | E22: 106 | F22: 241 | G22: 341 | H22: 168 | I22: 154
B23: C.III.7. | C23: Krátkodobé poskytnuté zálohy | D23: 247 | E23: 8 | H23: 141 | I23: 1
B24: C.III.9. | C24: Jiné pohledávky | D24: 2 | I24: 99
B25: C.IV. | C25: Krátkodobý finanční majetek | D25: 552 | E25: 66 | F25: 46 | G25: 112 | H25: 2347 | I25: 111
B26: C.IV.1. | C26: Peníze | D26: 242 | E26: 43 | F26: 9 | G26: 88 | H26: 300 | I26: 87
B27: C.IV.2. | C27: Účty v bankách | D27: 310 | E27: 23 | F27: 37 | G27: 24 | H27: 2047 | I27: 24
B28: D.I. | C28: Časové rozlišení | D28: 70 | E28: 37 | F28: 45 | G28: 81 | H28: 457 | I28: 31
B29: D.I.1. | C29: Náklady příštích období | D29: 70 | E29: 37 | F29: 45 | G29: 81 | H29: 457 | I29: 31
C31: PASIVA | D31: 2010 | E31: 2011 | F31: 2012 | G31: 2013 | H31: 2014 | I31: 2015
C32: Pasiva celkem (součet A až C) | D32: 1395 | E32: 432 | F32: 458 | G32: 795 | H32: 3561 | I32: 819
B33: A. | C33: Vlastní kapitál | D33: -736 | E33: -1566 | F33: -2238 | G33: -2722 | H33: -2895 | I33: -2824
B34: A.I. | C34: Základní kapitál | D34: 100 | E34: 100 | F34: 100 | G34: 100 | H34: 100 | I34: 100
B35: A.I.1. | C35: Základní kapitál | D35: 100 | E35: 100 | F35: 100 | G35: 100 | H35: 100 | I35: 100
B36: A.II. | C36: Kapitálové fondy | D36: 176 | E36: 197 | F36: 197 | G36: 197 | H36: 197 | I36: 197
B37: A.II.2. | C37: Ostatní kapitálové fondy | D37: 176 | E37: 197 | F37: 197 | G37: 197 | H37: 197 | I37: 197
B38: A.III. | C38: Rezervní fondy, nedělitelný fond a ostatná fondy ze zisku | D38: 10 | E38: 10 | F38: 10 | G38: 10 | H38: 10 | I38: 10
B39: A.III.1. | C39: Zákonný rezervní fond | D39: 10 | E39: 10 | F39: 10 | G39: 10 | H39: 10 | I39: 10
B40: A.IV. | C40: Výsledek hospodaření minulých let | D40: -439 | E40: -1023 | F40: -1873 | G40: -2544 | H40: -3030 | I40: -3202
B41: A.IV.1. | C41: Nerozdělený zisk minulých let | D41: 974 | E41: 974
B42: A.IV.2. | C42: Neuhrazená ztráta minulých let | D42: -1413 | E42: -1997 | F42: -1873 | G42: -2544 | H42: -3030 | I42: -3202
B43: A.V. | C43: Výsledek hospodaření běžného účetnío období | D43: -583 | E43: -850 | F43: -672 | G43: -485 | H43: -172 | I43: 71
B44: B. | C44: Cizí zdroje | D44: 2127 | E44: 1994 | F44: 2595 | G44: 3512 | H44: 6456 | I44: 3643
B45: B.II. | C45: Dlouhodobé závazky | G45: 414 | I45: 56
B46: B.II.4. | C46: Závazky ke společníkům, členům družstva a k účastníkům sdružení | G46: 414 | I46: 56
B47: B.III. | C47: Krátkodobé závazky | D47: 1627 | E47: 1288 | F47: 2305 | G47: 2698 | H47: 6180 | I47: 2387
B48: B.III.1. | C48: Závazky z obchodních vztahů | D48: 327 | E48: 165 | F48: 371 | G48: 221 | H48: 1338 | I48: 338
B49: B.III.5. | C49: Závazky k zaměstnancům | D49: 373 | E49: 379 | F49: 457 | G49: 493 | H49: 703 | I49: 641
B50: B.III.6. | C50: Závazky ze sociálního zabezpečení a zdravotního pojištění | D50: 149 | E50: 489 | F50: 992 | G50: 425 | H50: 823 | I50: 229
B51: B.III.7. | C51: Stát - daňové závazky a dotace | D51: 212 | E51: -560 | F51: -328 | G51: 690 | H51: 2397 | I51: -20
B52: B.III.8. | C52: Kráátkodobé přijaté zálohy | D52: 571 | E52: 633 | F52: 683 | G52: 710 | H52: 759 | I52: 1062
B53: B.III.10. | C53: Dohadné účty pasivní | E53: 28 | F53: 139 | G53: 167 | H53: 144 | I53: 127
B54: B.III.11. | C54: Jiné závazky | D54: -5 | E54: 154 | F54: -9 | G54: -8 | H54: 16 | I54: 10
B55: B.IV. | C55: Bankovní úvěry a výpomoci | D55: 500 | E55: 706 | F55: 290 | G55: 400 | H55: 276 | I55: 1200
B56: B.IV.1. | C56: Bankovní úvěry dlouhodobé | D56: 500 | E56: 706
B57: B.IV.2. | C57: Bankovní úvěry krátkodobé | G57: 400 | H57: 276 | I57: 1200
B58: C.I. | C58: Časové rozlišení | D58: 4 | E58: 4 | F58: 101 | G58: 5
B59: C.I.1. | C59: Časové rozlišení příštích období | D59: 4 | E59: 4 | F59: 5
B60: C.I.2. | C60: Výnosy příštích období | F60: 96 | G60: 5

Sheet ZaZ
B2: Výkaz zisku a ztrát
D5: Výkaz zisku a ztrát | E5: 2010 | F5: 2011 | G5: 2012 | H5: 2013 | I5: 2014 | J5: 2015
C6: I. | D6: Třžby za prodej zboží | E6: 7 | F6: 20 | G6: 14 | H6: 17 | I6: 99 | J6: 69
C7: A. | D7: Náklady vynaložené na prodané zboží | G7: 17 | H7: 18 | I7: 100 | J7: 86
C8: + | D8: Obchodní marže | E8: 7 | F8: 20 | G8: -3 | H8: -1 | I8: -1 | J8: -17
C9: II. | D9: Výkony | E9: 4205 | F9: 3648 | G9: 3707 | H9: 4337 | I9: 5237 | J9: 5650
C10: II.1. | D10: Tržby za prodej výrobků a služeb | E10: 4205 | F10: 3648 | G10: 3707 | H10: 4337 | I10: 5237 | J10: 5650
C11: B. | D11: Výkonová spotřeba | E11: 5957 | F11: 4831 | G11: 3739 | H11: 3815 | I11: 6172 | J11: 8998
C12: B.1. | D12: Spotřeba materiálu a energie | E12: 1843 | F12: 1586 | G12: 1002 | H12: 1397 | I12: 2746 | J12: 2411
C13: B.2. | D13: Služby | E13: 4114 | F13: 3245 | G13: 2737 | H13: 2418 | I13: 3426 | J13: 65867
C14: + | D14: Přidaná hodnota | E14: -1745 | F14: -1163 | G14: -35 | H14: 521 | I14: -936 | J14: -3365
C15: C. | D15: Osobní náklady | E15: 7120 | F15: 6848 | G15: 7141 | H15: 8330 | I15: 10453 | J15: 12825
C16: C.1. | D16: Mzdové náklady | E16: 5551 | F16: 5460 | G16: 5640 | H16: 6607 | I16: 8319 | J16: 10130
C17: C.3. | D17: Náklady na sociální zabezpečení a zdravotní pojištění | E17: 1441 | F17: 1279 | G17: 1404 | H17: 1617 | I17: 2040 | J17: 2555
C18: C.4. | D18: Sociální náklady | E18: 128 | F18: 109 | G18: 97 | H18: 106 | I18: 94 | J18: 140
C19: D. | D19: Daně a poplatky | E19: 15 | F19: 14 | G19: 6 | H19: 4 | I19: 15 | J19: 2
C20: E. | D20: Odpisy dlouhodobého nehmotného a hm. Majetku | E20: 94 | F20: 27 | G20: 65 | I20: 2 | J20: 7
C21: IV. | D21: Ostatní provozní výnosy | E21: 8706 | F21: 7493 | G21: 6701 | H21: 7319 | I21: 11386 | J21: 17592
C22: H. | D22: Ostatní provozní náklady | E22: 344 | F22: 286 | G22: 117 | H22: 19 | I22: 81 | J22: 1230
C23: * | D23: Provozní výsledek hospodaření | E23: -612 | F23: -845 | G23: -663 | H23: -513 | I23: -119 | J23: 163
C24: N. | D24: Nákladové úroky | E24: 2 | F24: 48 | G24: 49 | H24: 11 | I24: 48 | J24: 67
C25: XI. | D25: Ostatní finanční výnosy | E25: 35 | F25: 53 | G25: 66 | H25: 54 | I25: 9 | J25: 11
C26: O. | D26: Ostatní finanční nákaldy | E26: 18 | F26: 26 | G26: 26 | H26: 17 | I26: 14 | J26: 36
C27: * | D27: Finanční výsledek hospodaření | E27: 15 | F27: -21 | G27: -9 | H27: 26 | I27: -53 | J27: -92
C28: ** | D28: Výsledek hospodaření za běžnou činnost | E28: -597 | F28: -866 | G28: -672 | H28: -487 | I28: -172 | J28: 71
C29: XIII. | D29: Mimořádné výnosy | E29: 15 | F29: 16 | H29: 2
C30: R. | D30: Mimořádné náklady | E30: 1
C31: * | D31: Mimořádný výsledek hospodaření | E31: 14 | F31: 16 | H31: 2
C32: *** | D32: Výsledek hospodaření za za účetní období | E32: -583 | F32: -850 | G32: -672 | H32: -485 | I32: -172 | J32: 71
C33: **** | D33: Výsledek hospodaření před zdaněním | E33: -583 | F33: -850 | G33: -672 | H33: -485 | I33: -172 | J33: 71

Sheet Vertikální analýza
B4: AKTIVA
B5: Položka rozvahy (v tis. Kč) | I5: Podíl na celkových aktivech v %
B6: Období | C6: 2010 | D6: 2011 | E6: 2012 | F6: 2013 | G6: 2014 | H6: 2015 | I6: 2010 | J6: 2011 | K6: 2012 | L6: 2013 | M6: 2014 | N6: 2015
B7: DNM | C7: 21 | D7: 11 | E7: 0 | F7: 0 | G7: 0 | H7: 0 | I7: 1.505376344 | J7: 2.546296296 | K7: 0 | L7: 0 | M7: 0 | N7: 0
B8: DHM | C8: 70 | D8: 54 | E8: 0 | F8: 0 | G8: 169 | H8: 267 | I8: 5.017921147 | J8: 12.5 | K8: 0 | L8: 0 | M8: 4.745857905 | N8: 32.6007326
B9: Celkem stálá aktiva | C9: 91 | D9: 65 | E9: 0 | F9: 0 | G9: 169 | H9: 267 | I9: 6.523297491 | J9: 15.0462963 | K9: 0 | L9: 0 | M9: 4.745857905 | N9: 32.6007326
B10: Pohl. z obchodních vztahů | C10: 433 | D10: 106 | E10: 241 | F10: 341 | G10: 309 | H10: 254 | I10: 31.03942652 | J10: 24.53703704 | K10: 52.62008734 | L10: 42.89308176 | M10: 8.677337826 | N10: 31.01343101
B11: Krátk. finanční majetek | C11: 552 | D11: 66 | E11: 46 | F11: 112 | G11: 2347 | H11: 111 | I11: 39.56989247 | J11: 15.27777778 | K11: 10.04366812 | L11: 14.08805031 | M11: 65.90845268 | N11: 13.55311355
B12: Peníze v hotovosti | C12: 242 | D12: 43 | E12: 9 | F12: 88 | G12: 300 | H12: 87 | I12: 17.34767025 | J12: 9.953703704 | K12: 1.965065502 | L12: 11.06918239 | M12: 8.424599832 | N12: 10.62271062
B13: Účty v bankách | C13: 310 | D13: 23 | E13: 37 | F13: 24 | G13: 2047 | H13: 24 | I13: 22.22222222 | J13: 5.324074074 | K13: 8.07860262 | L13: 3.018867925 | M13: 57.48385285 | N13: 2.93040293
B14: Celkem oběžná aktiva | C14: 1234 | D14: 330 | E14: 413 | F14: 714 | G14: 2935 | H14: 521 | I14: 88.45878136 | J14: 76.38888889 | K14: 90.17467249 | L14: 89.81132075 | M14: 82.42066835 | N14: 63.61416361
B15: Časové rozlišení | C15: 70 | D15: 37 | E15: 45 | F15: 81 | G15: 457 | H15: 31 | I15: 5.017921147 | J15: 8.564814815 | K15: 9.825327511 | L15: 10.18867925 | M15: 12.83347374 | N15: 3.785103785
B16: Aktiva celkem | C16: 1395 | D16: 432 | E16: 458 | F16: 795 | G16: 3561 | H16: 819 | I16: 100 | J16: 100 | K16: 100 | L16: 100 | M16: 100 | N16: 100
B20: PASIVA
B21: Položka rozvahy | I21: Podíl na celkových pasivech v %
B22: Období | C22: 2010 | D22: 2011 | E22: 2012 | F22: 2013 | G22: 2014 | H22: 2015 | I22: 2010 | J22: 2011 | K22: 2012 | L22: 2013 | M22: 2014 | N22: 2015
B23: Základní kapitál | C23: 100 | D23: 100 | E23: 100 | F23: 100 | G23: 100 | H23: 100 | I23: 7.168458781 | J23: 23.14814815 | K23: 21.83406114 | L23: 12.57861635 | M23: 2.808199944 | N23: 12.21001221
B24: VH za běžné období | C24: -583 | D24: -850 | E24: -672 | F24: -485 | G24: -172 | H24: 71 | I24: -41.7921147 | J24: -196.7592593 | K24: -146.7248908 | L24: -61.00628931 | M24: -4.830103903 | N24: 8.669108669
B25: Vlastní kapitál | C25: -736 | D25: -1566 | E25: -2238 | F25: -2722 | G25: -2895 | H25: -2824 | I25: -52.75985663 | J25: -362.5 | K25: -488.6462882 | L25: -342.3899371 | M25: -81.29738837 | N25: -344.8107448
B26: Dlouhodobé závazky | C26: 0 | D26: 0 | E26: 0 | F26: 414 | G26: 0 | H26: 56 | I26: 0 | J26: 0 | K26: 0 | L26: 52.0754717 | M26: 0 | N26: 6.837606838
B27: Krátkodobé závazky | C27: 1627 | D27: 1288 | E27: 2305 | F27: 2698 | G27: 6180 | H27: 2387 | I27: 116.6308244 | J27: 298.1481481 | K27: 503.2751092 | L27: 339.3710692 | M27: 173.5467565 | N27: 291.4529915
B28: Cizí zdroje | C28: 2127 | D28: 1994 | E28: 2595 | F28: 3512 | G28: 6456 | H28: 3643 | I28: 152.4731183 | J28: 461.5740741 | K28: 566.5938865 | L28: 441.7610063 | M28: 181.2973884 | N28: 444.8107448
B29: Bankovní úvěry a výpomoci | C29: 500 | D29: 706 | E29: 290 | F29: 400 | G29: 276 | H29: 1200 | I29: 35.84229391 | J29: 163.4259259 | K29: 63.31877729 | L29: 50.31446541 | M29: 7.750631845 | N29: 146.5201465
B30: Časové rozlišení | C30: 4 | D30: 4 | E30: 101 | F30: 5 | G30: 0 | H30: 0 | I30: 0.2867383513 | J30: 0.9259259259 | K30: 22.05240175 | L30: 0.6289308176 | M30: 0 | N30: 0
B31: Pasiva celkem | C31: 1395 | D31: 432 | E31: 458 | F31: 795 | G31: 3561 | H31: 819 | I31: 100 | J31: 100 | K31: 100 | L31: 100 | M31: 100 | N31: 100

Sheet Ukazatele
B4: Rozdílové ukazatele
B6: Rozdílové ukazatele | C6: 2010 | D6: 2011 | E6: 2012 | F6: 2013 | G6: 2014 | H6: 2015
B7: Čistý pracovní kapitál | C7: -393 | D7: -958 | E7: -1892 | F7: -1984 | G7: -3245 | H7: =Rozvaha!I13-Rozvaha!I47 -> -1866
B8: Čisté pohotové prostředky | C8: -1075 | D8: -1222 | E8: -2259 | F8: -2586 | G8: -3833 | H8: =Rozvaha!I25-Rozvaha!I47 -> -2276
B9: Čistý peněžitý majetek | C9: -393 | D9: -958 | E9: -1892 | F9: -2034 | G9: -3246 | H9: =(Rozvaha!I13-Rozvaha!I14)-Rozvaha!I47 -> -1870
B11: Čisté pohotové prostředky
B12: Pořadí | C12: Rok (t) | D12: Hodnoty (v Kč) | E12: První diference (d_1) | F12: Koeficient růstu (k1) | G12: Vyrovnané hodnoty (v Kč)
B13: 1 | C13: 2010 | D13: -1075 | E13: - | F13: - | G13: -1196.71
B14: 2 | C14: 2011 | D14: -1222 | E14: =D14-D13 -> -147 | F14: =D14/D13 -> 1.136744186 | G14: -1601.43
B15: 3 | C15: 2012 | D15: -2259 | E15: =D15-D14 -> -1037 | F15: =D15/D14 -> 1.848608838 | G15: -2006.14
B16: 4 | C16: 2013 | D16: -2586 | E16: =D16-D15 -> -327 | F16: =D16/D15 -> 1.144754316 | G16: -2410.86
B17: 5 | C17: 2014 | D17: -3833 | E17: =D17-D16 -> -1247 | F17: =D17/D16 -> 1.48221191 | G17: -2815.57
B18: 6 | C18: 2015 | D18: -2276 | E18: =D18-D17 -> 1557 | F18: =D18/D17 -> 0.5937907644 | G18: -3220.29
B27: Ukazatele rentability
I28: v %
C29: 2010 | D29: 2011 | E29: 2012 | F29: 2013 | G29: 2014 | H29: 2015 | I29: 2010 | J29: 2011 | K29: 2012 | L29: 2013 | M29: 2014 | N29: 2015 | AR29: v %
B30: ROI | C30: -0.273154678 | D30: -0.4022066199 | E30: -0.2400770713 | F30: -0.1349658314 | G30: -0.01920693928 | H30: =(ZaZ!J33+ZaZ!J24)/Rozvaha!I44 -> 0.03788086742 | I30: -27.3154678 | J30: -40.22066199 | K30: -24.00770713 | L30: -13.49658314 | M30: -1.920693928 | N30: =H30*100 -> 3.788086742 | AR30: 2010 | AS30: 2011 | AT30: 2012 | AU30: 2013 | AV30: 2014 | AW30: 2015
B31: ROA | C31: -0.4164874552 | D31: -1.856481481 | E31: -1.360262009 | F31: -0.5962264151 | G31: -0.0348216793 | H31: =(ZaZ!J33+ZaZ!J24)/Rozvaha!I5 -> 0.1684981685 | I31: -41.64874552 | J31: -185.6481481 | K31: -136.0262009 | L31: -59.62264151 | M31: -3.48216793 | N31: =H31*100 -> 16.84981685 | AQ31: ROI | AR31: -27.3154678 | AS31: -40.22066199 | AT31: -24.00770713 | AU31: -13.49658314 | AV31: -1.920693928 | AW31: 3.79
B32: ROE | C32: -0.7921195652 | D32: 0.5427841635 | E32: 0.3002680965 | F32: 0.1781778104 | G32: 0.05941278066 | H32: =ZaZ!J32/Rozvaha!I33 -> -0.02514164306 | I32: -79.21195652 | J32: 54.27841635 | K32: 30.02680965 | L32: 17.81778104 | M32: 5.941278066 | N32: =H32*100 -> -2.514164306 | AQ32: ROA | AR32: -41.64874552 | AS32: -185.6481481 | AT32: -136.0262009 | AU32: -59.62264151 | AV32: -3.48216793 | AW32: 16.85
B33: ROS | C33: 0.1384140551 | D33: -0.2317339149 | E33: -0.1805966138 | F33: -0.1113918236 | G33: -0.03223388306 | H33: =ZaZ!J32/(ZaZ!J6+ZaZ!J10) -> 0.01241475782 | I33: 13.84140551 | J33: -23.17339149 | K33: -18.05966138 | L33: -11.13918236 | M33: -3.223388306 | N33: =H33*100 -> 1.241475782 | AQ33: ROE | AR33: -79.21195652 | AS33: 54.27841635 | AT33: 30.02680965 | AU33: 17.81778104 | AV33: 5.941278066 | AW33: -2.51
AQ34: ROS | AR34: 13.84140551 | AS34: -23.17339149 | AT34: -18.05966138 | AU34: -11.13918236 | AV34: -3.223388306 | AW34: 1.24
B35: ROI
B36: Pořadí | C36: Rok (t) | D36: Hodnoty (y v %) | E36: První diference (d_1) | F36: Koeficient růstu (k1) | G36: Vyrovnané hodnoty (v %)
B37: 1 | C37: 2010 | D37: -27.32 | E37: - | F37: - | G37: -37.2652381
B38: 2 | C38: 2011 | D38: -40.22 | E38: =D38-D37 -> -12.9 | F38: =D38/D37 -> 1.472181552 | G38: -29.23780952
B39: 3 | C39: 2012 | D39: -24.01 | E39: =D39-D38 -> 16.21 | F39: =D39/D38 -> 0.5969666832 | G39: -21.21038095
B40: 4 | C40: 2013 | D40: -13.5 | E40: =D40-D39 -> 10.51 | F40: =D40/D39 -> 0.5622657226 | G40: -13.18295238
B41: 5 | C41: 2014 | D41: -1.92 | E41: =D41-D40 -> 11.58 | F41: =D41/D40 -> 0.1422222222 | G41: -5.15552381
B42: 6 | C42: 2015 | D42: 3.79 | E42: =D42-D41 -> 5.71 | F42: =D42/D41 -> -1.973958333 | G42: 2.871904762
B48: Ukazatele aktivity
B50: Ukazatel | C50: 2010 | D50: 2011 | E50: 2012 | F50: 2013 | G50: 2014 | H50: 2015
B51: Obrat celkových aktiv | C51: 3.019354839 | D51: 8.490740741 | E51: 8.124454148 | F51: 5.47672956 | G51: 1.49845549 | H51: =(ZaZ!J6+ZaZ!J10)/Rozvaha!I5 -> 6.982905983
B53: Ukazatel | C53: 2010 | D53: 2011 | E53: 2012 | F53: 2013 | G53: 2014 | H53: 2015
B54: Obrat stálých aktiv | C54: 46.28571429 | D54: 56.43076923 | E54: - | F54: - | G54: 31.5739645 | H54: =(ZaZ!J6+ZaZ!J10)/Rozvaha!I7 -> 21.41947566
B56: Ukazatel | C56: 2010 | D56: 2011 | E56: 2012 | F56: 2013 | G56: 2014 | H56: 2015
B57: Obrat zásob | C57: - | D57: - | E57: - | F57: 87.08 | G57: 5336 | H57: =(ZaZ!J6+ZaZ!J10)/Rozvaha!I14 -> 1429.75
B59: Ukazatel | C59: 2010 | D59: 2011 | E59: 2012 | F59: 2013 | G59: 2014 | H59: 2015
B60: Doba obratu zásob | C60: - | D60: - | E60: - | F60: 4.191548002 | G60: 0.06840329835 | H60: =(Rozvaha!I14/((ZaZ!J6+ZaZ!J10)/365)) -> 0.2552893863
B62: Ukazatel | C62: 2010 | D62: 2011 | E62: 2012 | F62: 2013 | G62: 2014 | H62: 2015
B63: Doba obratu pohledávek | C63: 59.10018993 | D63: 11.34405671 | E63: 23.6401505 | F63: 28.58635737 | G63: 21.13661919 | H63: =Rozvaha!I21/((ZaZ!J6+ZaZ!J10)/365) -> 16.21087603
B65: Ukazatel | C65: 2010 | D65: 2011 | E65: 2012 | F65: 2013 | G65: 2014 | H65: 2015
B66: Doba obratu závazků | C66: 28.33689459 | D66: 16.41902944 | E66: 36.3920989 | F66: 18.52664217 | G66: 91.52361319 | H66: =(Rozvaha!I48/((ZaZ!J6+ZaZ!J10)/365)) -> 21.57195314
B70: Doba obratu závazků
B71: Pořadí | C71: Rok (t) | D71: Hodnoty y (dny) | E71: První diference (d_1) | F71: Koeficient růstu (k1) | G71: Vyrovnané hodnoty (v dny)
B72: 1 | C72: 2010 | D72: =C66 -> 28.33689459 | E72: - | F72: - | G72: 23.06004762
B73: 2 | C73: 2011 | D73: =D66 -> 16.41902944 | E73: =D73-D72 -> -11.91786514 | F73: =D73/D72 -> 0.5794223285 | G73: 28.0207619
B74: 3 | C74: 2012 | D74: =E66 -> 36.3920989 | E74: =D74-D73 -> 19.97306945 | F74: =D74/D73 -> 2.216458593 | G74: 32.98147619
B75: 4 | C75: 2013 | D75: =F66 -> 18.52664217 | E75: =D75-D74 -> -17.86545673 | F75: =D75/D74 -> 0.5090841894 | G75: 37.94219048
B76: 5 | C76: 2014 | D76: =G66 -> 91.52361319 | E76: =D76-D75 -> 72.99697103 | F76: =D76/D75 -> 4.940108 | G76: 42.90290476
B77: 6 | C77: 2015 | D77: =H66 -> 21.57195314 | E77: =D77-D76 -> -69.95166005 | F77: =D77/D76 -> 0.2356982246 | G77: 47.86361905
B80: Dob a obratu pohledávek
B81: Pořadí | C81: Rok (t) | D81: Hodnoty y (dny) | E81: První diference (d_1) | F81: Koeficient růstu (k1) | G81: Vyrovnané hodnoty (v dny)
B82: 1 | C82: 2010 | D82: 59.1 | E82: - | F82: - | G82: 39.51047619
B83: 2 | C83: 2011 | D83: 11.34 | E83: =D83-D82 -> -47.76 | F83: =D83/D82 -> 0.1918781726 | G83: 34.36761905
B84: 3 | C84: 2012 | D84: 23.54 | E84: =D84-D83 -> 12.2 | F84: =D84/D83 -> 2.075837743 | G84: 29.2247619
B85: 4 | C85: 2013 | D85: 28.59 | E85: =D85-D84 -> 5.05 | F85: =D85/D84 -> 1.214528462 | G85: 24.08190476
B86: 5 | C86: 2014 | D86: 21.14 | E86: =D86-D85 -> -7.45 | F86: =D86/D85 -> 0.7394193774 | G86: 18.93904762
B87: 6 | C87: 2015 | D87: 16.21 | E87: =D87-D86 -> -4.93 | F87: =D87/D86 -> 0.7667928098 | G87: 13.79619048
B94: Ukazatele likvidity
C96: 2010 | D96: 2011 | E96: 2012 | F96: 2013 | G96: 2014 | H96: 2015
B97: Běžná likvidita | C97: 0.7584511371 | D97: 0.2562111801 | E97: 0.179175705 | F97: 0.2646404744 | G97: 0.4749190939 | H97: =Rozvaha!I13/Rozvaha!I47 -> 0.2182656054
B98: Pohotová likvidita | C98: 0.7584511371 | D98: 0.2562111801 | E98: 0.179175705 | F98: 0.2461082283 | G98: 0.4747572816 | H98: =(Rozvaha!I13-Rozvaha!I14)/Rozvaha!I47 -> 0.2165898618
B99: Okamžitá likvidita | C99: 0.3392747388 | D99: 0.05124223602 | E99: 0.01995661605 | F99: 0.04151223128 | G99: 0.3797734628 | H99: =Rozvaha!I25/Rozvaha!I47 -> 0.04650188521
B102: Běžná likvidita
B103: Pořadí | C103: Rok (t) | D103: Hodnoty y | E103: První diference (d_1) | F103: Koeficient růstu (k1) | G103: Vyrovnané hodnoty y
B104: 1 | C104: 2010 | D104: =C97 -> 0.7584511371 | E104: - | F104: - | G104: 0.4940952381
B105: 2 | C105: 2011 | D105: =D97 -> 0.2562111801 | E105: =D105-D104 -> -0.5022399569 | F105: =D105/D104 -> 0.3378084198 | G105: 0.4393238095
B106: 3 | C106: 2012 | D106: =E97 -> 0.179175705 | E106: =D106-D105 -> -0.07703547514 | F106: =D106/D105 -> 0.6993282061 | G106: 0.384552381
B107: 4 | C107: 2013 | D107: =F97 -> 0.2646404744 | E107: =D107-D106 -> 0.08546476944 | F107: =D107/D106 -> 1.476988604 | G107: 0.3297809524
B108: 5 | C108: 2014 | D108: =G97 -> 0.4749190939 | E108: =D108-D107 -> 0.2102786194 | F108: =D108/D107 -> 1.794582234 | G108: 0.2750095238
B109: 6 | C109: 2015 | D109: =H97 -> 0.2182656054 | E109: =D109-D108 -> -0.2566534885 | F109: =D109/D108 -> 0.4595848181 | G109: 0.2202380952
B117: Ukazatele zadluženosti
B119: Ukazatel | C119: 2010 | D119: 2011 | E119: 2012 | F119: 2013 | G119: 2014 | H119: 2015
B120: Celková zadluženost | C120: 1.529115744 | D120: 4.658878505 | E120: 7.268907563 | F120: 4.44556962 | G120: 1.812973884 | H120: =Rozvaha!I44/(Rozvaha!I33+Rozvaha!I44) -> 4.448107448
B121: v % | C121: 152.9115744 | D121: 465.8878505 | E121: 726.8907563 | F121: 444.556962 | G121: 181.2973884 | H121: =H120*100 -> 444.8107448
B123: Ukazatel | C123: 2010 | D123: 2011 | E123: 2012 | F123: 2013 | G123: 2014 | H123: 2015
B124: Koeficient zadluženosti | C124: -2.889945652 | D124: -1.273307791 | E124: -1.159517426 | F124: -1.290227774 | G124: -2.230051813 | H124: =Rozvaha!I44/Rozvaha!I33 -> -1.290014164
B125: v % | C125: -288.9945652 | D125: -127.3307791 | E125: -115.9517426 | F125: -129.0227774 | G125: -223.0051813 | H125: =H124*100 -> -129.0014164
A127: PRYČ | B127: Ukazatel | C127: 2010 | D127: 2011 | E127: 2012 | F127: 2013 | G127: 2014 | H127: 2015
B128: Úrokové krytí | C128: -290.5 | D128: -16.70833333 | E128: -12.71428571 | F128: -43.09090909 | G128: -2.583333333 | H128: =(ZaZ!J33+ZaZ!J24)/ZaZ!J24 -> 2.059701493
B129: v % | C129: -29050 | D129: -1670.833333 | E129: -1271.428571 | F129: -4309.090909 | G129: -258.3333333 | H129: =H128*100 -> 205.9701493
B131: Ukazatel | C131: 2010 | D131: 2011 | E131: 2012 | F131: 2013 | G131: 2014 | H131: 2015
B132: Kvóta vl. Kapitálu | C132: -0.5275985663 | D132: -3.625 | E132: -4.886462882 | F132: -3.423899371 | G132: -0.8129738837 | H132: =Rozvaha!I33/Rozvaha!I5 -> -3.448107448
B133: v % | C133: -52.75985663 | D133: -362.5 | E133: -488.6462882 | F133: -342.3899371 | G133: -81.29738837 | H133: =H132*100 -> -344.8107448
B135: Celková zadluženost
B136: Pořadí | C136: Rok (t) | D136: Hodnoty y (v %) | E136: První diference (d_1) | F136: Koeficient růstu (k1) | G136: Vyrovnané hodnoty (v %)
B137: 1 | C137: 2010 | D137: =C121 -> 152.9115744 | E137: - | F137: - | G137: 240.45
B138: 2 | C138: 2011 | D138: =D121 -> 465.8878505 | E138: =D138-D137 -> 312.9762761 | F138: =D138/D137 -> 3.046779502 | G138: 417.58
B139: 3 | C139: 2012 | D139: =E121 -> 726.8907563 | E139: =D139-D138 -> 261.0029058 | F139: =D139/D138 -> 1.560226899 | G139: 510.58
B140: 4 | C140: 2013 | D140: =F121 -> 444.556962 | E140: =D140-D139 -> -282.3337943 | F140: =D140/D139 -> 0.6115870345 | G140: 520.12
B141: 5 | C141: 2014 | D141: =G121 -> 181.2973884 | E141: =D141-D140 -> -263.2595737 | F141: =D141/D140 -> 0.4078158793 | G141: 441.83
B142: 6 | C142: 2015 | D142: =H121 -> 444.8107448 | E142: =D142-D141 -> 263.5133564 | F142: =D142/D141 -> 2.453486776 | G142: 290.14
B161: Provozní ukazatele
C163: 2010 | D163: 2011 | E163: 2012 | F163: 2013 | G163: 2014 | H163: 2015
B164: Nákladovost výnosů | C164: 1.038271605 | D164: 1.072903685 | E164: 1.05817835 | F164: 1.04161692 | G164: 1.009145248 | H164: =(ZaZ!J7+ZaZ!J11+ZaZ!J15+ZaZ!J19+ZaZ!J22+ZaZ!J24+ZaZ!J26)/(ZaZ!J6+ZaZ!J8+ZaZ!J10+ZaZ!J21+ZaZ!J25) -> 0.9973825359
B165: Materiálová náročnost výnosů | C165: 0.1422067901 | D165: 0.1411785651 | E165: 0.09556509299 | F165: 0.1191369606 | G165: 0.1641362821 | H165: =(ZaZ!J12)/(ZaZ!J6+ZaZ!J8+ZaZ!J10+ZaZ!J21+ZaZ!J25) -> 0.1034541944
B166: Mzdová produktivita | C166: 2.334714466 | D166: 2.057509158 | E166: 1.859042553 | F166: 1.77478432 | G166: 2.011059022 | H166: =(ZaZ!J6+ZaZ!J8+ZaZ!J10+ZaZ!J21+ZaZ!J25)/ZaZ!J16 -> 2.3005923
B172: Nákladovost výnosů
B173: Pořadí | C173: Rok (t) | D173: Hodnoty y | E173: První diference (d_1) | F173: Koeficient růstu (k1) | G173: Vyrovnané hodnoty y
B174: 1 | C174: 2010 | D174: 1.04 | E174: - | F174: - | G174: 1.065238095
B175: 2 | C175: 2011 | D175: 1.07 | E175: =D175-D174 -> 0.03 | F175: =D175/D174 -> 1.028846154 | G175: 1.053809524
B176: 3 | C176: 2012 | D176: 1.06 | E176: =D176-D175 -> -0.01 | F176: =D176/D175 -> 0.9906542056 | G176: 1.042380952
B177: 4 | C177: 2013 | D177: 1.04 | E177: =D177-D176 -> -0.02 | F177: =D177/D176 -> 0.9811320755 | G177: 1.030952381
B178: 5 | C178: 2014 | D178: 1.01 | E178: =D178-D177 -> -0.03 | F178: =D178/D177 -> 0.9711538462 | G178: 1.01952381
B179: 6 | C179: 2015 | D179: 1 | E179: =D179-D178 -> -0.01 | F179: =D179/D178 -> 0.9900990099 | G179: 1.008095238
Z182: y=-0,118x+1,0775
Z183: R= 0,5919
B195: Index IN05
B197: Ukazatel | C197: 2010 | D197: 2011 | E197: 2012 | F197: 2013 | G197: 2014 | H197: 2015 | I197: 0.13 | J197: 0.04 | K197: 3.97 | L197: 0.21 | M197: 0.09
B198: Index důvěryhodnosti | C198: -13.82710212 | D198: -70.28647289 | E198: -2.271034187 | F198: -4.149735711 | G198: 0.04964219331 | H198: =(I197*(Rozvaha!I5/Rozvaha!I44))+(Ukazatele!J197*(ZaZ!J23/ZaZ!J24))+(Ukazatele!K197*(ZaZ!J23/Rozvaha!I5))+(Ukazatele!L197*(ZaZ!J6/Rozvaha!I5))+((Ukazatele!M197*(Rozvaha!I13/(Rozvaha!I47+Rozvaha!I57)))) -> 0.9474259585 | I198: čísla ve vzorci
B202: Z-score | C202: A | D202: B | E202: C | F202: D | G202: E | H202: 2010 | I202: 2011 | J202: 2012 | K202: 2013 | L202: 2014 | M202: 2015
B203: 2010 | C203: =(Rozvaha!D13-Rozvaha!D47)/Rozvaha!D5 -> -0.2817204301 | D203: =Rozvaha!D41/Rozvaha!D5 -> 0.6982078853 | E203: =C241/Rozvaha!D5 -> -0.4164874552 | F203: =Rozvaha!D34/Rozvaha!D44 -> 0.04701457452 | G203: =(ZaZ!E6+ZaZ!E9)/Rozvaha!D5 -> 3.019354839 | H203: =(C210*C203)+(D210*D203)+(E210*E203)+(F210*F203)+(G210*G203) -> 2.128424257 | I203: =(C210*C204)+(D210*D204)+(E210*E204)+(F210*F204)+(G210*G204) -> 3.046391893 | J203: =(C210*C205)+(D210*D205)+(E210*E205)+(F210*F205)+(G210*G205) -> 0.9361260191 | K203: =(C210*C206)+(D210*D206)+(E210*E206)+(F210*F206)+(G210*G206) -> 1.83591623 | L203: =(C210*C207)+(D210*D207)+(E210*E207)+(F210*F207)+(G210*G207) -> 0.7403991454 | M203: =(C210*C208)+(D210*D208)+(E210*E208)+(F210*F208)+(G210*G208) -> 5.870388545
B204: 2011 | C204: =(Rozvaha!E13-Rozvaha!E47)/Rozvaha!E5 -> -2.217592593 | D204: =Rozvaha!E41/Rozvaha!E5 -> 2.25462963 | E204: =D241/Rozvaha!E5 -> -1.856481481 | F204: =Rozvaha!E34/Rozvaha!E44 -> 0.05015045135 | G204: =(ZaZ!F6+ZaZ!F9)/Rozvaha!E5 -> 8.490740741
B205: 2012 | C205: =(Rozvaha!F13-Rozvaha!F47)/Rozvaha!F5 -> -4.131004367 | D205: =Rozvaha!F41/Rozvaha!F5 -> 0 | E205: =E241/Rozvaha!F5 -> -1.360262009 | F205: =Rozvaha!F34/Rozvaha!F44 -> 0.03853564547 | G205: =(ZaZ!G6+ZaZ!G9)/Rozvaha!F5 -> 8.124454148
B206: 2013 | C206: =(Rozvaha!G13-Rozvaha!G47)/Rozvaha!G5 -> -2.495597484 | D206: =Rozvaha!G41/Rozvaha!G5 -> 0 | E206: =F241/Rozvaha!G5 -> -0.5962264151 | F206: =Rozvaha!G34/Rozvaha!G44 -> 0.0284738041 | G206: =(ZaZ!H6+ZaZ!H9)/Rozvaha!G5 -> 5.47672956
B207: 2014 | C207: =(Rozvaha!H13-Rozvaha!H47)/Rozvaha!H5 -> -0.9112608818 | D207: =Rozvaha!H41/Rozvaha!H5 -> 0 | E207: =G241/Rozvaha!H5 -> -0.0348216793 | F207: =Rozvaha!H34/Rozvaha!H44 -> 0.01548946716 | G207: =(ZaZ!I6+ZaZ!I9)/Rozvaha!H5 -> 1.49845549
B208: 2015 | C208: =(Rozvaha!I13-Rozvaha!I47)/Rozvaha!I5 -> -2.278388278 | D208: =Rozvaha!I41/Rozvaha!I5 -> 0 | E208: =H241/Rozvaha!I5 -> 0.1684981685 | F208: =Rozvaha!I34/Rozvaha!I44 -> 0.02744990393 | G208: =(ZaZ!J6+ZaZ!J9)/Rozvaha!I5 -> 6.982905983
B210: čísla ve vzorci | C210: 0.717 | D210: 0.847 | E210: 3.107 | F210: 0.42 | G210: 0.998 | H210: 2.13 | I210: 3.05 | J210: 0.94 | K210: 1.84 | L210: 0.74 | M210: 5.87
B213: Index IN05
B214: Pořadí | C214: Rok (t) | D214: Hodnoty y | E214: První diference (d_1) | F214: Koeficient růstu (k1) | G214: Vyrovnané hodnoty y
B215: 1 | C215: 2010 | D215: =C198 -> -13.82710212 | E215: - | F215: - | G215: -35.14
B216: 2 | C216: 2011 | D216: =D198 -> -70.28647289 | E216: =D216-D215 -> -56.45937077 | F216: =D216/D215 -> 5.083239588 | G216: -27.05
B217: 3 | C217: 2012 | D217: =E198 -> -2.271034187 | E217: =D217-D216 -> 68.0154387 | F217: =D217/D216 -> 0.03231111327 | G217: -18.97
B218: 4 | C218: 2013 | D218: =F198 -> -4.149735711 | E218: =D218-D217 -> -1.878701524 | F218: =D218/D217 -> 1.827244933 | G218: -10.88
B219: 5 | C219: 2014 | D219: =G198 -> 0.04964219331 | E219: =D219-D218 -> 4.199377905 | F219: =D219/D218 -> -0.01196273613 | G219: -2.79
B220: 6 | C220: 2015 | D220: =H198 -> 0.9474259585 | E220: =D220-D219 -> 0.8977837652 | F220: =D220/D219 -> 19.08509466 | G220: 5.29
B224: Z-score
B225: Pořadí | C225: Rok (t) | D225: Hodnoty y | E225: První diference (d_1) | F225: Koeficient růstu (k1) | G225: Vyrovnané hodnoty y
B226: 1 | C226: 2010 | D226: =H203 -> 2.128424257 | E226: - | F226: - | G226: 3.103
B227: 2 | C227: 2011 | D227: =I203 -> 3.046391893 | E227: =D227-D226 -> 0.9179676358 | F227: =D227/D226 -> 1.431289783 | G227: 1.548
B228: 3 | C228: 2012 | D228: =J203 -> 0.9361260191 | E228: =D228-D227 -> -2.110265874 | F228: =D228/D227 -> 0.3072900835 | G228: 1.002 | I228: d1průměr = | J228: 0.7484
B229: 4 | C229: 2013 | D229: =K203 -> 1.83591623 | E229: =D229-D228 -> 0.8997902113 | F229: =D229/D228 -> 1.961184918 | G229: 1.423 | I229: kprůměr = | J229: 1.224992121
B230: 5 | C230: 2014 | D230: =L203 -> 0.7403991454 | E230: =D230-D229 -> -1.095517085 | F230: =D230/D229 -> 0.4032859088 | G230: 2.688
B231: 6 | C231: 2015 | D231: =M203 -> 5.870388545 | E231: =D231-D230 -> 5.129989399 | F231: =D231/D230 -> 7.928680875 | G231: 4.836
Y232: y = 0,448x2 - 2,7742x + 5,343
Y233: R² = 0,552
B238: Zisk | C238: 2010 | D238: 2011 | E238: 2012 | F238: 2013 | G238: 2014 | H238: 2015
B239: EAT | C239: -583 | D239: -850 | E239: -672 | F239: -485 | G239: -172 | H239: 71
B240: EBT | C240: -583 | D240: -850 | E240: -672 | F240: -485 | G240: -172 | H240: 71
B241: EBIT | C241: =C240+ZaZ!E24 -> -581 | D241: =D240+ZaZ!F24 -> -802 | E241: =E240+ZaZ!G24 -> -623 | F241: =F240+ZaZ!H24 -> -474 | G241: =G240+ZaZ!I24 -> -124 | H241: =H240+ZaZ!J24 -> 138

Sheet Horizontální analýza
B2: AKTIVA
B3: Položka rozvahy (v tis. Kč) | I3: Změna v Kč
B4: Období | C4: 2010 | D4: 2011 | E4: 2012 | F4: 2013 | G4: 2014 | H4: 2015 | I4: 2010 až 2011 | J4: 2011 až 2012 | K4: 2012 až 2013 | L4: 2013 až 2014 | M4: 2014 až 2015
B5: DNM | C5: 21 | D5: 11 | E5: 0 | F5: 0 | G5: 0 | H5: 0 | I5: -10 | J5: -11 | K5: 0 | L5: 0 | M5: 0
B6: DHM | C6: 70 | D6: 54 | E6: 0 | F6: 0 | G6: 169 | H6: 267 | I6: -16 | J6: -54 | K6: 0 | L6: 169 | M6: 98
B7: Celkem stálá aktiva | C7: 91 | D7: 65 | E7: 0 | F7: 0 | G7: 169 | H7: 267 | I7: -26 | J7: -65 | K7: 0 | L7: 169 | M7: 98
B8: Pohl. z obchodních vztahů | C8: 433 | D8: 106 | E8: 241 | F8: 341 | G8: 309 | H8: 254 | I8: -327 | J8: 135 | K8: 100 | L8: -32 | M8: -55
B9: Krátk. finanční majetek | C9: 552 | D9: 66 | E9: 46 | F9: 112 | G9: 2347 | H9: 111 | I9: -486 | J9: -20 | K9: 66 | L9: 2235 | M9: -2236
B10: Peníze v hotovosti | C10: 242 | D10: 43 | E10: 9 | F10: 88 | G10: 300 | H10: 87 | I10: -199 | J10: -34 | K10: 79 | L10: 212 | M10: -213
B11: Účty v bankách | C11: 310 | D11: 23 | E11: 37 | F11: 24 | G11: 2047 | H11: 24 | I11: -287 | J11: 14 | K11: -13 | L11: 2023 | M11: -2023
B12: Celkem oběžná aktiva | C12: 1234 | D12: 330 | E12: 413 | F12: 714 | G12: 2935 | H12: 521 | I12: -904 | J12: 83 | K12: 301 | L12: 2221 | M12: -2414
B13: Aktiva celkem | C13: 1395 | D13: 432 | E13: 458 | F13: 795 | G13: 3561 | H13: 819 | I13: -963 | J13: 26 | K13: 337 | L13: 2766 | M13: -2742
B16: PASIVA
B17: Položka rozvahy (v tis. Kč) | I17: Změna v Kč
B18: Období | C18: 2010 | D18: 2011 | E18: 2012 | F18: 2013 | G18: 2014 | H18: 2015 | I18: 2010 až 2011 | J18: 2011 až 2012 | K18: 2012 až 2013 | L18: 2013 až 2014 | M18: 2014 až 2015
B19: Vlastní kapitál | C19: -736 | D19: -1566 | E19: -2238 | F19: -2722 | G19: -2895 | H19: -2824 | I19: -830 | J19: -672 | K19: -484 | L19: -173 | M19: 71
B20: Základní kapitál | C20: 100 | D20: 100 | E20: 100 | F20: 100 | G20: 100 | H20: 100 | I20: 0 | J20: 0 | K20: 0 | L20: 0 | M20: 0
B21: Kapitálové fondy | C21: 176 | D21: 197 | E21: 197 | F21: 197 | G21: 197 | H21: 197 | I21: 21 | J21: 0 | K21: 0 | L21: 0 | M21: 0
B22: Výsl. hospodaření min. let | C22: -439 | D22: -1023 | E22: -1873 | F22: -2544 | G22: -3030 | H22: -3202 | I22: -584 | J22: -850 | K22: -671 | L22: -486 | M22: -172
B23: Výsl. hosp. z běžného úč. období | C23: -583 | D23: -850 | E23: -672 | F23: -485 | G23: -172 | H23: 71 | I23: -267 | J23: 178 | K23: 187 | L23: 313 | M23: 243
B24: Cizí zdroje | C24: 2127 | D24: 1994 | E24: 2595 | F24: 3512 | G24: 6456 | H24: 3643 | I24: -133 | J24: 601 | K24: 917 | L24: 2944 | M24: -2813
B25: Dlouhodobé závazky | C25: 0 | D25: 0 | E25: 0 | F25: 414 | G25: 0 | H25: 56 | I25: 0 | J25: 0 | K25: 414 | L25: -414 | M25: 56
B26: Krátkodobé závazky | C26: 1627 | D26: 1288 | E26: 2305 | F26: 2698 | G26: 6180 | H26: 2387 | I26: -339 | J26: 1017 | K26: 393 | L26: 3482 | M26: -3793
B27: Bankovní výpomoci a úvěry | C27: 500 | D27: 706 | E27: 290 | F27: 400 | G27: 276 | H27: 1200 | I27: 206 | J27: -416 | K27: 110 | L27: -124 | M27: 924
B28: Pasiva celkem | C28: 1395 | D28: 432 | E28: 458 | F28: 795 | G28: 3561 | H28: 819 | I28: -963 | J28: 26 | K28: 337 | L28: 2766 | M28: -2742

Sheet Marketing
C7: Propagace školy na Facebooku
C8: Potencionální počet oslovených | G8: 180000 osob
C9: Za předpokladu zaujmout pouze 5% | G9: 90 osob
C10: Dosah v okolí okresu Karviná | G10: 70 km
C11: Cena za den | G11: 124,-Kč/den
C12: Časové období | G12: Od 1.1.2017 po dobu 74 dní
C13: Celková suma | G13: 9 176,-Kč
